fUSD/lending_fUSD_20251201
["ID","MTS","AMOUNT","RATE_DAILY","PERIOD"]
[395276422,1764579041078,-500.0,0.00013698,2]
[395276423,1764579041087,-500.0,0.00013698,2]
[395276424,1764579041096,-500.0,0.00013698,2]
[395276425,1764579041106,-500.0,0.00013698,2]
[395276426,1764579041115,-530.10808563,0.00013698,2]
[395276427,1764579041125,-500.0,0.00013698,2]
[395276428,1764579041137,-500.0,0.00013698,2]
[395276429,1764579041147,-500.0,0.00013698,2]
[395276430,1764579041156,-500.0,0.00013698,2]
[395276431,1764579041165,-500.0,0.00013698,2]
[395276432,1764579041175,-500.0,0.00013698,2]
[395276433,1764579041185,-500.0,0.00013698,2]
[395276434,1764579041196,-500.0,0.00013698,2]
[395276435,1764579041205,-269.91867043,0.00013698,2]
[395276436,1764579041214,-500.0,0.00013698,2]
[395276437,1764579041223,-500.0,0.00013698,2]
[395276438,1764579041232,-500.0,0.00013698,2]
[395276439,1764579041241,-500.0,0.00013698,2]
[395276440,1764579041250,-500.0,0.00013698,2]
[395276441,1764579041259,-500.0,0.00013698,2]
[395276442,1764579041268,-500.0,0.00013698,2]
[395276443,1764579041277,-500.0,0.00013698,2]
[395276444,1764579041286,-500.0,0.00013698,2]
[395276445,1764579041295,-963.77,0.00013699,2]
[395276446,1764579041305,-166.66,0.00013699,2]
[395276447,1764579041314,-200.0,0.00013699,2]
[395276448,1764579041322,-6207.59,0.00013699,2]
[395276449,1764579041331,-638.99034369,0.00013699,2]
[395276450,1764579041340,-156.69183458,0.00013699,2]
[395276451,1764579041349,-195.19,0.00013717,2]
[395276452,1764579041359,-500.0,0.0001373,2]
[395276453,1764579041368,-500.0,0.00013731,2]
[395276454,1764579041378,-500.0,0.00013731,2]
[395276455,1764579041387,-500.0,0.00013731,2]
[395276456,1764579041396,-500.0,0.00013731,2]
[395276457,1764579041406,-500.0,0.00013731,2]
[395276458,1764579041415,-500.0,0.00013731,2]
[395276459,1764579041424,-500.0,0.00013731,2]
[395276460,1764579041434,-500.0,0.00013731,2]
[395276461,1764579041443,-500.0,0.00013731,2]
[395276462,1764579041452,-897.54,0.00013731,2]
[395276463,1764579041462,-897.54,0.00013731,2]
[395276464,1764579041471,-897.54,0.00013731,2]
[395276465,1764579041480,-500.0,0.00013731,2]
[395276466,1764579041489,-500.0,0.00013731,2]
[395276467,1764579041499,-500.0,0.00013731,2]
[395276468,1764579041508,-500.0,0.00013731,2]
[395276469,1764579041517,-500.0,0.00013731,2]
[395276470,1764579041526,-571.55421177,0.00013731,2]
[395276471,1764579041535,-500.0,0.00013731,2]
[395276472,1764579041545,-1932.69,0.00013731,2]
[395276473,1764579041557,-1932.69,0.00013731,2]
[395276474,1764579041566,-1932.69,0.00013731,2]
[395276475,1764579041576,-300.0,0.00013764,2]
[395276476,1764579041585,-300.0,0.00013764,2]
[395276477,1764579041595,-195.0,0.00013764,2]
[395276478,1764579041604,-1680.0,0.0001382,2]
[395276479,1764579041614,-166.66,0.00013836,2]
[395276480,1764579041623,-1000.0,0.00013968,2]
[395276481,1764579041633,-1500.0,0.00013968,2]
[395276482,1764579041643,-166.66,0.00013973,2]
[395276483,1764579041653,-1600.0,0.00013987,2]
[395276484,1764579041662,-13609.13575488,0.00014007,2]
[395276485,1764579041672,-195.19,0.00014109,2]
[395276486,1764579041681,-166.66,0.0001411,2]
[395276487,1764579041690,-166.66,0.00014247,2]
[395276488,1764579041700,-166.66,0.00014384,2]
[395276489,1764579041709,-13609.13575488,0.0001442,2]
[395276490,1764579041719,-500.0,0.00014422,2]
[395276491,1764579041728,-1932.69,0.00014422,2]
[395276492,1764579041737,-195.19,0.00014501,2]
[395276493,1764579041747,-897.54,0.00014516,2]
[395276494,1764579041756,-2000.0,0.00014516,2]
[395276495,1764579041766,-5607.3213846,0.0001452,2]
[395276496,1764579041776,-1000.0,0.00014615,2]
[395276497,1764579041786,-445.2059248,0.00014756,2]
[395276498,1764579041795,-13609.13575488,0.00014833,2]
[395276499,1764579041804,-195.19,0.00014893,2]
[395276500,1764579041813,-178.72,0.00014919,2]
[395276501,1764579041823,-5607.3213846,0.00014996,2]
[395276502,1764579041833,-2500.0,0.00015064,2]
[395276503,1764579041842,-412.0,0.00015202,2]
[395276504,1764579041852,-13609.13575488,0.00015247,2]
[395276505,1764579041861,-173.91709942,0.00015272,2]
[395276506,1764579041871,-150.0,0.00015288,2]
[395276507,1764579041880,-150.0,0.00015288,2]
[395276508,1764579041890,-150.0,0.00015288,2]
[395276509,1764579041902,-150.0,0.00015288,2]
[395276510,1764579041912,-150.0,0.00015288,2]
[395276511,1764579041922,-150.0,0.00015288,2]
[395276512,1764579041932,-150.0,0.00015288,2]
[395276513,1764579041941,-150.0,0.00015288,2]
[395276514,1764579041951,-150.0,0.00015288,2]
[395276515,1764579041961,-150.0,0.00015288,2]
[395276516,1764579041970,-150.0,0.00015288,2]
[395276517,1764579041980,-150.0,0.00015288,2]
[395276518,1764579041989,-150.0,0.00015288,2]
[395276519,1764579041998,-150.0,0.0001532,2]
[395276520,1764579042010,-150.0,0.00015335,2]
[395276521,1764579042022,-150.0,0.00015353,2]
[395276522,1764579042033,-150.0,0.00015353,2]
[395276523,1764579042042,-150.0,0.00015362,2]
[395276524,1764579042051,-150.0,0.00015373,2]
[395276525,1764579042060,-150.0,0.00015373,2]
[395276526,1764579042070,-150.0,0.00015382,2]
[395276527,1764579042079,-150.0,0.00015386,2]
[395276528,1764579042088,-150.0,0.00015418,2]
[395276529,1764579042097,-150.0,0.00015418,2]
[395276530,1764579042106,-150.0,0.00015429,2]
[395276531,1764579042116,-150.0,0.00015435,2]
[395276532,1764579042125,-150.0,0.00015442,2]
[395276533,1764579042135,-150.0,0.00015442,2]
[395276534,1764579042144,-150.0,0.00015451,2]
[395276535,1764579042153,-150.0,0.00015458,2]
[395276536,1764579042162,-150.0,0.00015458,2]
[395276537,1764579042172,-5607.3213846,0.00015472,2]
[395276538,1764579042181,-150.0,0.00015476,2]
[395276539,1764579042190,-150.0,0.00015484,2]
[395276540,1764579042199,-150.0,0.00015484,2]
[395276541,1764579042209,-150.0,0.00015509,2]
[395276542,1764579042218,-150.0,0.00015516,2]
[395276543,1764579042228,-150.0,0.00015524,2]
[395276544,1764579042237,-150.0,0.0001553,2]
[395276545,1764579042247,-1600.0,0.00015541,2]
[395276546,1764579042256,-150.0,0.00015542,2]
[395276547,1764579042264,-150.0,0.00015542,2]
[395276548,1764579042274,-150.0,0.00015549,2]
[395276549,1764579042283,-150.0,0.00015549,2]
[395276550,1764579042293,-150.0,0.00015571,2]
[395276552,1764579042302,-150.0,0.00015582,2]
[395276554,1764579042312,-150.0,0.00015583,2]
[395276555,1764579042321,-150.0,0.00015597,2]
[395276556,1764579042330,-150.0,0.00015597,2]
[395276557,1764579042339,-2224.15226749,0.00015612,2]
[395276558,1764579042348,-150.0,0.00015614,2]
[395276560,1764579042357,-150.0,0.00015614,2]
[395276562,1764579042366,-150.0,0.00015618,2]
[395276564,1764579042376,-150.0,0.00015627,2]
[395276565,1764579042385,-150.0,0.00015627,2]
[395276566,1764579042394,-150.0,0.00015647,2]
[395276567,1764579042404,-150.0,0.00015657,2]
[395276568,1764579042414,-13609.13575488,0.0001566,2]
[395276569,1764579042424,-150.0,0.00015665,2]
[395276570,1764579042433,-150.0,0.0001568,2]
[395276571,1764579042443,-150.0,0.0001568,2]
[395276572,1764579042452,-500.0,0.00015695,2]
[395276573,1764579042462,-500.0,0.00015695,2]
[395276574,1764579042471,-500.0,0.00015695,2]
[395276575,1764579042480,-168.54,0.00015704,2]
[395276576,1764579042489,-150.0,0.00015712,2]
[395276577,1764579042499,-150.0,0.00015712,2]
[395276578,1764579042507,-150.0,0.00015712,2]
[395276579,1764579042516,-150.0,0.00015712,2]
[395276580,1764579042525,-150.0,0.00015731,2]
[395276581,1764579042534,-150.0,0.00015745,2]
[395276582,1764579042544,-150.0,0.00015745,2]
[395276583,1764579042556,-150.0,0.00015751,2]
[395276584,1764579042566,-150.0,0.00015751,2]
[395276585,1764579042576,-150.0,0.0001576,2]
[395276586,1764579042585,-150.0,0.00015773,2]
[395276587,1764579042594,-150.0,0.00015778,2]
[395276588,1764579042605,-150.0,0.00015797,2]
[395276589,1764579042615,-150.0,0.00015797,2]
[395276590,1764579042624,-150.0,0.00015805,2]
[395276591,1764579042634,-150.0,0.00015807,2]
[395276592,1764579042643,-150.0,0.0001581,2]
[395276593,1764579042653,-150.0,0.0001581,2]
[395276594,1764579042662,-150.0,0.00015843,2]
[395276595,1764579042671,-639.66251844,0.00015849,2]
[395276596,1764579042681,-500.0,0.00015849,2]
[395276597,1764579042691,-500.0,0.00015849,2]
[395276598,1764579042700,-550.61391722,0.0001585,2]
[395276599,1764579042709,-500.0,0.0001585,2]
[395276600,1764579042719,-500.0,0.0001585,2]
[395276601,1764579042728,-500.0,0.0001585,2]
[395276602,1764579042738,-500.0,0.0001585,2]
[395276603,1764579042747,-503.91137404,0.0001585,2]
[395276604,1764579042756,-500.0,0.0001585,2]
[395276605,1764579042766,-500.0,0.0001585,2]
[395276606,1764579042775,-500.0,0.0001585,2]
[395276607,1764579042785,-500.0,0.0001585,2]
[395276608,1764579042795,-500.0,0.0001585,2]
[395276609,1764579042805,-500.0,0.0001585,2]
[395276610,1764579042814,-500.0,0.0001585,2]
[395276611,1764579042823,-504.52598037,0.0001585,2]
[395276612,1764579042833,-500.0,0.0001585,2]
[395276613,1764579042842,-500.0,0.0001585,2]
[395276614,1764579042851,-500.0,0.0001585,2]
[395276615,1764579042861,-500.0,0.0001585,2]
[395276616,1764579042870,-500.0,0.0001585,2]
[395276617,1764579042880,-500.0,0.0001585,2]
[395276618,1764579042890,-500.0,0.0001585,2]
[395276620,1764579042901,-507.70227852,0.0001585,2]
[395276623,1764579042911,-495.9241853,0.0001585,2]
[395276625,1764579042921,-150.0,0.00015854,2]
[395276626,1764579042931,-150.0,0.00015854,2]
[395276628,1764579042940,-285.10367421,0.00015854,2]
[395276630,1764579042949,-150.0,0.00015876,2]
[395276632,1764579042958,-150.0,0.00015876,2]
[395276634,1764579042968,-150.0,0.00015878,2]
[395276636,1764579042977,-150.0,0.00015882,2]
[395276637,1764579042986,-150.0,0.00015882,2]
[395276638,1764579042995,-346.15829826,0.000159,2]
[395276639,1764579043006,-150.0,0.00015901,2]
[395276640,1764579043015,-150.0,0.00015905,2]
[395276641,1764579043025,-150.0,0.00015905,2]
[395276642,1764579043034,-150.0,0.00015908,2]
[395276643,1764579043043,-150.0,0.00015941,2]
[395276645,1764579043053,-150.0,0.00015941,2]
[395276647,1764579043062,-5607.3213846,0.00015948,2]
[395276649,1764579043071,-150.0,0.00015948,2]
[395276650,1764579043081,-150.0,0.00015952,2]
[395276651,1764579043090,-150.0,0.00015967,2]
[395276652,1764579043099,-150.0,0.00015967,2]
[395276653,1764579043108,-150.0,0.00015974,2]
[395276654,1764579043117,-858.28092338,0.0001599,2]
[395276655,1764579043127,-150.0,0.00015995,2]
[395276656,1764579043136,-500.0,0.00015999,2]
[395276657,1764579043147,-500.0,0.00015999,2]
[395276658,1764579043156,-500.0,0.00015999,2]
[395276659,1764579043166,-500.0,0.00015999,2]
[395276660,1764579043174,-217992.40892067,0.00016,2]
[395276661,1764579043184,-150.0,0.00016006,2]
[395276662,1764579043193,-150.0,0.00016006,2]
[395276663,1764579043202,-150.0,0.00016016,2]
[395276664,1764579043211,-4565.0,0.00016026,2]
[395276665,1764579043221,-150.0,0.00016026,2]
[395276666,1764579043230,-166.66,0.00016036,2]
[395276667,1764579043239,-150.0,0.00016039,2]
[395276668,1764579043248,-150.0,0.00016043,2]
[395276669,1764579043258,-150.0,0.00016052,2]
[395276670,1764579043268,-150.0,0.00016052,2]
[395276671,1764579043279,-150.0,0.0001606,2]
[395276672,1764579043287,-150.0,0.0001606,2]
[395276673,1764579043295,-150.0,0.00016072,2]
[395276674,1764579043305,-150.0,0.00016072,2]
[395276675,1764579043314,-13609.13575488,0.00016073,2]
[395276676,1764579043323,-150.0,0.0001609,2]
[395276677,1764579043333,-150.0,0.000161,2]
[395276678,1764579043342,-150.0,0.00016104,2]
[395276679,1764579043351,-1004.4,0.00016116,2]
[395276680,1764579043361,-150.0,0.00016137,2]
[395276681,1764579043370,-150.0,0.00016137,2]
[395276682,1764579043380,-150.0,0.00016137,2]
[395276683,1764579043390,-150.0,0.00016137,2]
[395276684,1764579043399,-150.0,0.00016137,2]
[395276685,1764579043409,-500.0,0.00016148,2]
[395276686,1764579043418,-500.0,0.00016148,2]
[395276687,1764579043428,-500.0,0.00016148,2]
[395276688,1764579043439,-897.54,0.00016148,2]
[395276689,1764579043449,-897.54,0.00016148,2]
[395276690,1764579043459,-500.0,0.00016148,2]
[395276691,1764579043468,-1932.69,0.00016148,2]
[395276692,1764579043477,-1932.69,0.00016148,2]
[395276693,1764579043486,-500.0,0.00016148,2]
[395276694,1764579043496,-500.0,0.00016148,2]
[395276695,1764579043505,-313.41,0.00016148,2]
[395276696,1764579043514,-150.0,0.0001617,2]
[395276697,1764579043524,-150.0,0.00016174,2]
[395276698,1764579043533,-150.0,0.00016184,2]
[395276699,1764579043542,-150.0,0.00016202,2]
[395276700,1764579043552,-150.0,0.00016202,2]
[395276701,1764579043565,-150.0,0.00016214,2]
[395276702,1764579043574,-150.0,0.00016214,2]
[395276703,1764579043583,-150.0,0.00016222,2]
[395276704,1764579043593,-150.0,0.00016222,2]
[395276705,1764579043602,-150.0,0.00016231,2]
[395276706,1764579043613,-150.0,0.00016235,2]
[395276707,1764579043622,-1000.0,0.00016239,2]
[395276708,1764579043634,-150.0,0.00016248,2]
[395276709,1764579043643,-150.0,0.00016258,2]
[395276710,1764579043653,-150.0,0.00016268,2]
[395276711,1764579043663,-150.0,0.00016268,2]
[395276712,1764579043672,-150.0,0.00016279,2]
[395276713,1764579043682,-150.0,0.000163,2]
[395276714,1764579043692,-150.0,0.00016307,2]
[395276715,1764579043702,-150.0,0.00016307,2]
[395276716,1764579043712,-150.0,0.00016322,2]
[395276717,1764579043722,-150.0,0.00016326,2]
[395276718,1764579043731,-445.2059248,0.00016331,2]
[395276719,1764579043741,-150.0,0.00016333,2]
[395276720,1764579043750,-150.0,0.00016333,2]
[395276721,1764579043759,-260.0,0.00016355,2]
[395276722,1764579043768,-150.0,0.00016366,2]
[395276723,1764579043778,-150.0,0.00016369,2]
[395276724,1764579043787,-150.0,0.00016369,2]
[395276725,1764579043797,-150.0,0.00016373,2]
[395276726,1764579043806,-150.0,0.00016392,2]
[395276727,1764579043815,-150.0,0.00016392,2]
[395276728,1764579043825,-150.0,0.00016395,2]
[395276729,1764579043834,-1000.0,0.00016398,2]
[395276730,1764579043843,-487.452036,0.00016398,2]
[395276731,1764579043852,-1085.93988918,0.00016398,2]
[395276732,1764579043862,-1000.0,0.00016398,2]
[395276733,1764579043872,-1000.0,0.00016398,2]
[395276734,1764579043881,-1000.0,0.00016398,2]
[395276735,1764579043890,-1000.0,0.00016398,2]
[395276736,1764579043900,-154.41744648,0.00016398,2]
[395276737,1764579043910,-1000.0,0.00016398,2]
[395276738,1764579043919,-1000.0,0.00016398,2]
[395276739,1764579043929,-1000.0,0.00016398,2]
[395276740,1764579043939,-1000.0,0.00016398,2]
[395276741,1764579043949,-1000.0,0.00016398,2]
[395276742,1764579043958,-1000.0,0.00016398,2]
[395276743,1764579043967,-1000.0,0.00016398,2]
[395276744,1764579043975,-1000.0,0.00016398,2]
[395276745,1764579043985,-217.00327303,0.00016398,2]
[395276746,1764579043995,-1000.0,0.00016398,2]
[395276747,1764579044005,-150.0,0.00016398,2]
[395276748,1764579044016,-150.0,0.00016398,2]
[395276749,1764579044034,-150.0,0.0001642,2]
[395276750,1764579044043,-150.0,0.0001642,2]
[395276751,1764579044053,-260.0,0.00016421,2]
[395276752,1764579044063,-5607.3213846,0.00016424,2]
[395276753,1764579044073,-150.0,0.00016431,2]
[395276754,1764579044082,-500.0,0.00016437,2]
[395276755,1764579044091,-1210.40092513,0.00016438,2]
[395276756,1764579044101,-1210.40092513,0.00016438,2]
[395276757,1764579044111,-1210.40092513,0.00016438,2]
[395276758,1764579044120,-1210.40092513,0.00016438,2]
[395276759,1764579044129,-1210.40092513,0.00016438,2]
[395276760,1764579044138,-1210.40092513,0.00016438,2]
[395276761,1764579044148,-1210.40092513,0.00016438,2]
[395276762,1764579044157,-1210.40092513,0.00016438,2]
[395276763,1764579044166,-1210.40092513,0.00016438,2]
[395276764,1764579044175,-1210.40092513,0.00016438,2]
[395276765,1764579044185,-1210.40092513,0.00016438,2]
[395276766,1764579044194,-1210.40092513,0.00016438,2]
[395276767,1764579044204,-1210.40092513,0.00016438,2]
[395276768,1764579044214,-1210.40092513,0.00016438,2]
[395276769,1764579044223,-1210.40092513,0.00016438,2]
[395276770,1764579044232,-1210.40092513,0.00016438,2]
[395276771,1764579044241,-1210.40092513,0.00016438,2]
[395276772,1764579044250,-1210.40092513,0.00016438,2]
[395276773,1764579044259,-1210.40092513,0.00016438,2]
[395276774,1764579044269,-1210.40092513,0.00016438,2]
[395276775,1764579044278,-1210.40092513,0.00016438,2]
[395276776,1764579044287,-1210.40092513,0.00016438,2]
[395276777,1764579044296,-1210.40092513,0.00016438,2]
[395276778,1764579044305,-1210.40092513,0.00016438,2]
[395276779,1764579044315,-1210.40092513,0.00016438,2]
[395276780,1764579044324,-1210.40092513,0.00016438,2]
[395276781,1764579044333,-1210.40092513,0.00016438,2]
[395276782,1764579044342,-1210.40092513,0.00016438,2]
[395276783,1764579044351,-1210.40092513,0.00016438,2]
[395276784,1764579044361,-1210.40092513,0.00016438,2]
[395276785,1764579044371,-1210.40092513,0.00016438,2]
[395276786,1764579044381,-1210.40092513,0.00016438,2]
[395276787,1764579044390,-1210.40092513,0.00016438,2]
[395276788,1764579044401,-1210.40092513,0.00016438,2]
[395276789,1764579044411,-1210.40092513,0.00016438,2]
[395276790,1764579044421,-1210.40092513,0.00016438,2]
[395276791,1764579044431,-1210.40092513,0.00016438,2]
[395276792,1764579044440,-1210.40092513,0.00016438,2]
[395276793,1764579044449,-1210.40092513,0.00016438,2]
[395276794,1764579044458,-1210.40092513,0.00016438,2]
[395276795,1764579044467,-1210.40092513,0.00016438,2]
[395276796,1764579044721,-1210.40092513,0.00016438,2]
[395276797,1764579044731,-1210.40092513,0.00016438,2]
[395276798,1764579044741,-1210.40092513,0.00016438,2]
[395276799,1764579044751,-1210.40092513,0.00016438,2]
[395276800,1764579044761,-1210.40092513,0.00016438,2]
[395276801,1764579044770,-1210.40092513,0.00016438,2]
[395276802,1764579044780,-1210.40092513,0.00016438,2]
[395276803,1764579044789,-1210.40092513,0.00016438,2]
[395276804,1764579044799,-1210.40092513,0.00016438,2]
[395276805,1764579044808,-1210.40092513,0.00016438,2]
[395276806,1764579044819,-1210.40092513,0.00016438,2]
[395276807,1764579044828,-1210.40092513,0.00016438,2]
[395276808,1764579044838,-1210.40092513,0.00016438,2]
[395276809,1764579044848,-1210.40092513,0.00016438,2]
[395276810,1764579044857,-1210.40092513,0.00016438,2]
[395276811,1764579044867,-1210.40092513,0.00016438,2]
[395276812,1764579044876,-1210.40092513,0.00016438,2]
[395276813,1764579044885,-1210.40092513,0.00016438,2]
[395276814,1764579044894,-1210.40092513,0.00016438,2]
[395276815,1764579044904,-1210.40092513,0.00016438,2]
[395276816,1764579044913,-1210.40092513,0.00016438,2]
[395276817,1764579044923,-1210.40092513,0.00016438,2]
[395276818,1764579044932,-1210.40092513,0.00016438,2]
[395276819,1764579044942,-1210.40092513,0.00016438,2]
[395276820,1764579044952,-1210.40092513,0.00016438,2]
[395276821,1764579044961,-1210.40092513,0.00016438,2]
[395276822,1764579044970,-1210.40092513,0.00016438,2]
[395276823,1764579044980,-1210.40092513,0.00016438,2]
[395276824,1764579044989,-1210.40092513,0.00016438,2]
[395276825,1764579044998,-1210.40092513,0.00016438,2]
[395276826,1764579045007,-1210.40092513,0.00016438,2]
[395276827,1764579045016,-1210.40092513,0.00016438,2]
[395276828,1764579045026,-1210.40092513,0.00016438,2]
[395276829,1764579045035,-1157.44588463,0.00016438,2]
[395276830,1764579045046,-1157.44588463,0.00016438,2]
[395276831,1764579045055,-1157.44588463,0.00016438,2]
[395276832,1764579045064,-1157.44588463,0.00016438,2]
[395276833,1764579045073,-1157.44588463,0.00016438,2]
[395276834,1764579045083,-1157.44588463,0.00016438,2]
[395276835,1764579045092,-1157.44588463,0.00016438,2]
[395276836,1764579045101,-1157.44588463,0.00016438,2]
[395276837,1764579045110,-1157.44588463,0.00016438,2]
[395276838,1764579045119,-1157.44588463,0.00016438,2]
[395276839,1764579045128,-1157.44588463,0.00016438,2]
[395276840,1764579045138,-1157.44588463,0.00016438,2]
[395276841,1764579045148,-1157.44588463,0.00016438,2]
[395276842,1764579045158,-1157.44588463,0.00016438,2]
[395276843,1764579045168,-1157.44588463,0.00016438,2]
[395276844,1764579045177,-1157.44588463,0.00016438,2]
[395276845,1764579045187,-5454.01,0.00016438,2]
[395276846,1764579045197,-800.0,0.00016438,2]
[395276847,1764579045207,-163.95,0.0001644,2]
[395276848,1764579045218,-150.0,0.00016464,2]
[395276849,1764579045229,-150.0,0.00016464,2]
[395276850,1764579045238,-150.0,0.00016467,2]
[395276851,1764579045248,-150.0,0.00016469,2]
[395276852,1764579045258,-150.0,0.00016477,2]
[395276853,1764579045267,-150.0,0.00016477,2]
[395276854,1764579045276,-13609.13575488,0.00016487,2]
[395276855,1764579045285,-150.0,0.00016496,2]
[395276856,1764579045294,-150.0,0.00016501,2]
[395276857,1764579045304,-150.0,0.00016514,2]
[395276859,1764579045313,-150.0,0.00016523,2]
[395276861,1764579045322,-150.0,0.00016523,2]
[395276862,1764579045332,-150.0,0.00016529,2]
[395276864,1764579045341,-150.0,0.00016529,2]
[395276866,1764579045351,-150.0,0.00016543,2]
[395276867,1764579045360,-150.0,0.00016562,2]
[395276868,1764579045369,-150.0,0.00016562,2]
[395276869,1764579045379,-150.0,0.00016562,2]
[395276870,1764579045389,-150.0,0.00016562,2]
[395276871,1764579045399,-166.66,0.00016566,2]
[395276872,1764579045408,-260.0,0.0001658,2]
[395276873,1764579045417,-150.0,0.00016594,2]
[395276874,1764579045427,-150.0,0.00016594,2]
[395276875,1764579045436,-150.0,0.00016609,2]
[395276876,1764579045445,-150.0,0.00016617,2]
[395276877,1764579045455,-150.0,0.00016627,2]
[395276878,1764579045464,-150.0,0.00016647,2]
[395276879,1764579045473,-150.0,0.00016647,2]
[395276880,1764579045483,-208.68202078,0.00016648,2]
[395276881,1764579045492,-150.0,0.00016656,2]
[395276882,1764579045503,-150.0,0.0001666,2]
[395276883,1764579045512,-150.0,0.0001666,2]
[395276884,1764579045521,-150.0,0.00016677,2]
[395276885,1764579045530,-150.0,0.00016677,2]
[395276887,1764579045539,-260.0,0.0001669,2]
[395276888,1764579045548,-150.0,0.00016691,2]
[395276890,1764579045562,-150.0,0.00016692,2]
[395276891,1764579045571,-150.0,0.00016703,2]
[395276892,1764579045580,-150.0,0.00016725,2]
[395276893,1764579045592,-150.0,0.00016725,2]
[395276894,1764579045602,-150.0,0.00016732,2]
[395276895,1764579045612,-150.0,0.00016732,2]
[395276896,1764579045622,-150.0,0.00016744,2]
[395276897,1764579045633,-150.0,0.0001675,2]
[395276898,1764579045642,-150.0,0.00016758,2]
[395276899,1764579045651,-150.0,0.00016765,2]
[395276900,1764579045662,-150.0,0.0001679,2]
[395276901,1764579045671,-150.0,0.0001679,2]
[395276902,1764579045681,-150.0,0.00016798,2]
[395276903,1764579045691,-150.0,0.00016816,2]
[395276904,1764579045700,-150.0,0.00016816,2]
[395276905,1764579045709,-150.0,0.00016823,2]
[395276906,1764579045718,-150.0,0.00016832,2]
[395276907,1764579045728,-150.0,0.00016832,2]
[395276908,1764579045737,-300.0,0.00016832,2]
[395276909,1764579045746,-248.71531821,0.00016832,2]
[395276910,1764579045755,-150.0,0.00016839,2]
[395276911,1764579045765,-260.0,0.00016842,2]
[395276912,1764579045776,-150.0,0.00016845,2]
[395276913,1764579045787,-150.0,0.00016856,2]
[395276914,1764579045796,-150.0,0.00016856,2]
[395276915,1764579045806,-150.0,0.00016888,2]
[395276916,1764579045816,-150.0,0.00016892,2]
[395276917,1764579045825,-500.0,0.00016899,2]
[395276918,1764579045834,-500.0,0.00016899,2]
[395276919,1764579045843,-10000.0,0.000169,2]
[395276920,1764579045854,-5607.3213846,0.000169,2]
[395276921,1764579045863,-1088.14412726,0.000169,2]
[395276922,1764579045872,-779.3771298,0.000169,2]
[395276923,1764579045881,-150.0,0.00016901,2]
[395276924,1764579045890,-150.0,0.00016901,2]
[395276925,1764579045899,-150.0,0.00016912,2]
[395276926,1764579045909,-150.0,0.00016921,2]
[395276927,1764579045918,-150.0,0.00016921,2]
[395276928,1764579045929,-150.0,0.00016939,2]
[395276929,1764579045938,-1000.95083099,0.00016946,2]
[395276930,1764579045948,-500.74233697,0.00016946,2]
[395276932,1764579045958,-1000.0,0.00016946,2]
[395276934,1764579045967,-1000.0,0.00016946,2]
[395276936,1764579045977,-1500.0,0.00016946,2]
[395276939,1764579045986,-1500.0,0.00016946,2]
[395276940,1764579045996,-1500.0,0.00016946,2]
[395276942,1764579046005,-500.53815546,0.00016946,2]
[395276943,1764579046014,-1500.0,0.00016946,2]
[395276944,1764579046024,-1000.0,0.00016946,2]
[395276945,1764579046034,-1000.0,0.00016946,2]
[395276946,1764579046044,-1345.38363347,0.00016946,2]
[395276947,1764579046053,-934.82176489,0.00016946,2]
[395276948,1764579046064,-150.0,0.00016954,2]
[395276949,1764579046073,-162.85978352,0.00016973,2]
[395276950,1764579046082,-260.0,0.00016979,2]